bitfinex/quotes_SOLUSD_20251127
["timestamp","ask_amount","ask_price","bid_price","bid_amount"]
[1764252520427,3.83,141.37,141.35,3.64292596]
[1764252520738,3.83,141.37,141.36,3.64292596]
[1764252530835,0.71,141.37,141.36,3.64292596]
[1764252531132,10.90363655,141.37,141.36,3.64292596]
[1764252533152,3.83,141.37,141.36,3.64292596]
[1764252534357,3.12,141.37,141.36,3.64292596]
[1764252534939,3.83,141.37,141.36,3.64292596]
[1764252540757,3.83,141.37,141.34,7.07494767]
[1764252540758,10.90363655,141.37,141.32,8.80994492]
[1764252540968,4.35292596,141.36,141.31,3.64292596]
[1764252541436,0.71,141.35,141.31,3.64292596]
[1764252541635,16.308864,141.31,141.26,0.2]
[1764252541949,3.83,141.3,141.27,3.64292596]
[1764252542454,0.71,141.29,141.28,3.64292596]
[1764252542837,7.78764172,141.29,141.28,3.64292596]
[1764252543129,7.78764172,141.29,141.27,3.64292596]
[1764252543331,0.71,141.28,141.27,3.64292596]
[1764252543939,0.71,141.28,141.26,3.84292596]
[1764252544267,3.12,141.27,141.26,0.2]
[1764252544776,3.83,141.27,141.26,0.2]
[1764252545342,3.83,141.27,141.26,3.84292596]
[1764252546034,16.308864,141.3,141.26,0.2]
[1764252546343,3.8,141.29,141.28,3.64292596]
[1764252547738,3.8,141.29,141.26,0.2]
[1764252547739,10.87764172,141.29,141.26,0.2]
[1764252547936,0.68,141.28,141.26,0.2]
[1764252549138,7.07864373,141.27,141.26,0.2]
[1764252549571,7.75864373,141.27,141.26,3.84292596]
[1764252550650,0.68,141.27,141.26,3.84292596]
[1764252551649,7.75864373,141.27,141.26,3.84292596]
[1764252553248,0.68,141.27,141.26,3.84292596]
[1764252553673,7.75864373,141.27,141.26,0.2]
[1764252553964,7.75864373,141.27,141.26,3.84292596]
[1764252554359,7.75864373,141.27,141.26,0.2]
[1764252554555,7.75864373,141.27,141.26,3.84292596]
[1764252555971,0.68,141.27,141.26,3.84292596]
[1764252557167,7.75864373,141.27,141.26,3.84292596]
[1764252557349,0.68,141.27,141.26,3.84292596]
[1764252558573,0.68,141.27,141.26,2.53712727]
[1764252560863,3.8,141.27,141.26,2.53712727]
[1764252563081,10.87864373,141.27,141.26,0.2]
[1764252564278,10.87864373,141.27,141.26,2.53712727]
[1764252564657,3.8,141.27,141.26,2.53712727]
[1764252565578,10.87864373,141.27,141.26,2.53712727]
[1764252575381,3.12,141.27,141.26,2.53712727]
[1764252575688,0.72,141.3,141.26,18.96476547]
[1764252575893,0.72,141.3,141.29,2.33712727]
[1764252576092,3.84,141.3,141.29,2.33712727]
[1764252576567,10.91714083,141.3,141.29,2.33712727]
[1764252576967,10.91714083,141.3,141.28,2.33712727]
[1764252577270,0.72,141.29,141.28,2.33712727]
[1764252579399,0.72,141.29,141.26,7.27912912]
[1764252579600,0.72,141.29,141.28,2.33712727]
[1764252581706,7.79764172,141.29,141.27,2.33712727]
[1764252582185,0.66,141.28,141.27,2.33712727]
[1764252582711,7.73814269,141.28,141.27,2.33712727]
[1764252583097,0.66,141.28,141.27,2.33712727]
[1764252587045,3.78,141.28,141.27,2.33712727]
[1764252587619,7.73738979,141.3,141.27,2.33712727]
[1764252587821,3.12,141.29,141.26,16.6275652]
[1764252588021,3.78,141.29,141.26,16.6275652]
[1764252589141,7.07738979,141.3,141.28,2.33712727]
[1764252589319,7.73738979,141.3,141.29,2.33712727]
[1764252589521,10.85738979,141.3,141.29,2.33712727]
[1764252591042,20.088864,141.3,141.29,2.33712727]
[1764252591218,19.428864,141.3,141.29,2.33712727]
[1764252593466,26.50600483,141.3,141.29,2.33712727]
[1764252593647,27.16600483,141.3,141.29,2.33712727]
[1764252598255,3.12,141.3,141.29,2.33712727]
[1764252600869,3.78,141.3,141.26,0.2]
[1764252601053,3.78,141.3,141.28,2.33712727]
[1764252601054,0.66,141.29,141.28,2.33712727]
[1764252601242,0.66,141.29,141.26,0.2]
[1764252601442,0.66,141.29,141.27,2.33712727]
[1764252601674,0.66,141.31,141.28,2.33712727]
[1764252601975,3.12,141.3,141.26,34.32551293]
[1764252602771,3.12,141.29,141.26,34.32551293]
[1764252602956,3.12,141.29,141.28,2.33712727]
[1764252603268,7.07586479,141.33,141.28,2.33712727]
[1764252603468,0.66,141.35,141.32,2.33712727]
[1764252603773,3.12,141.34,141.27,8.80994492]
[1764252604270,3.78,141.34,141.29,8.80994492]
[1764252604458,3.12,141.34,141.29,8.80994492]
[1764252604658,0.66,141.33,141.29,8.80994492]
[1764252604870,0.66,141.33,141.32,2.33712727]
[1764252607169,3.78,141.33,141.32,2.33712727]
[1764252610680,10.85575172,141.33,141.31,2.33712727]
[1764252610895,0.7,141.32,141.29,2.33712727]
[1764252611476,3.03712727,141.32,141.26,7.27899984]
[1764252611683,3.03712727,141.32,141.27,5.289225]
[1764252611684,7.07764172,141.29,141.27,5.289225]
[1764252611860,3.12,141.28,141.27,2.33712727]
[1764252612177,3.82,141.28,141.27,7.62624012]
[1764252612682,3.82,141.28,141.27,2.33712727]
[1764252614581,3.82,141.28,141.26,0.2]
[1764252614794,3.12,141.28,141.27,2.33712727]
[1764252615175,3.82,141.28,141.27,2.33712727]
[1764252615893,10.89941627,141.28,141.27,2.33712727]
[1764252617405,17.97755896,141.28,141.27,2.33712727]
[1764252617590,17.97755896,141.28,141.26,2.53712727]
[1764252617902,0.7,141.27,141.26,2.53712727]
[1764252620600,0.7,141.27,141.26,3.85135595]
[1764252621807,7.77964407,141.27,141.26,3.85135595]
[1764252632493,7.77964407,141.27,141.26,0.2]
[1764252632709,7.77964407,141.27,141.26,3.85135595]
[1764252638020,0.7,141.27,141.26,0.2]
[1764252638227,3.82,141.27,141.26,3.85135595]
[1764252640312,10.89864373,141.27,141.26,3.85135595]
[1764252641127,10.89864373,141.27,141.26,0.2]
[1764252641531,14.54999968,141.27,141.26,0.2]
[1764252644125,14.54999968,141.27,141.26,3.85135595]
[1764252644305,10.19864373,141.27,141.26,3.85135595]
[1764252644512,10.87864373,141.27,141.26,3.85135595]
[1764252645309,18.1590607,141.27,141.26,3.85135595]
[1764252645909,18.1590607,141.27,141.26,0.2]
[1764252647519,18.1590607,141.27,141.26,3.85135595]
[1764252649643,10.87864373,141.27,141.26,3.85135595]
[1764252650340,19.88858865,141.27,141.26,3.85135595]
[1764252653425,19.88858865,141.27,141.26,0.2]
[1764252653743,36.19745265,141.27,141.26,0.2]
[1764252659329,19.88858865,141.27,141.26,0.2]
[1764252660144,41.15858865,141.27,141.26,0.2]
[1764252660439,33.07745265,141.27,141.26,0.2]
[1764252660643,36.19745265,141.27,141.26,0.2]
[1764252663143,33.07745265,141.27,141.26,0.2]
[1764252663343,36.19745265,141.27,141.26,0.2]
[1764252663953,19.88858865,141.27,141.26,0.2]
[1764252664130,23.5399446,141.27,141.26,0.2]
[1764252668348,36.19745265,141.27,141.26,0.2]
[1764252680340,33.07745265,141.27,141.26,0.2]
[1764252680557,36.19745265,141.27,141.26,0.2]
[1764252681379,36.19745265,141.27,141.26,0.123507]
[1764252688184,16.308864,141.25,141.24,0.2]
[1764252688487,3.12,141.25,141.24,0.2]
[1764252688790,29.99528884,141.25,141.24,0.2]
[1764252692189,32.33332634,141.25,141.24,0.2]
[1764252692662,16.02446234,141.25,141.24,0.2]
[1764252693185,16.02446234,141.25,141.24,1e-08]
[1764252693370,16.958864,141.24,141.23,1e-08]
[1764252693778,19.2969015,141.24,141.23,1e-08]
[1764252693963,22.13408276,141.24,141.23,1e-08]
[1764252694161,19.79604526,141.24,141.23,1e-08]
[1764252694375,25.25408276,141.24,141.23,1e-08]
[1764252694581,32.33423002,141.24,141.23,1e-08]
[1764252699296,62.41417494,141.24,141.23,1e-08]
[1764252699480,2.3380375,141.23,141.22,1e-08]
[1764252699673,2.9880375,141.23,141.22,1e-08]
[1764252700068,5.82562129,141.23,141.22,1e-08]
[1764252700692,27.09562129,141.23,141.22,1e-08]
[1764252701797,34.17626987,141.23,141.22,1e-08]
[1764252708297,60.68783625,141.23,141.2,0.2]
[1764252708508,18.6469015,141.21,141.2,0.2]
[1764252708880,22.1846866,141.21,141.2,0.2]
[1764252710909,29.26633804,141.21,141.2,0.2]
[1764252712800,26.22830054,141.21,141.2,0.2]
[1764252713006,28.56633804,141.21,141.2,0.2]
[1764252713506,29.26633804,141.21,141.2,0.2]
[1764252720510,32.38633804,141.21,141.2,0.2]
[1764252722185,29.26633804,141.21,141.2,0.2]
[1764252722416,32.38633804,141.21,141.2,1e-08]
[1764252722706,32.38633804,141.21,141.19,1e-08]
[1764252722707,0.7,141.2,141.19,1e-08]
[1764252722905,3.0380375,141.2,141.19,1e-08]
[1764252723290,5.87622531,141.2,141.19,1e-08]
[1764252723715,12.95837828,141.2,141.19,1e-08]
[1764252723909,10.62034078,141.2,141.19,1e-08]
[1764252724213,12.95837828,141.2,141.19,1e-08]
[1764252726219,16.308864,141.18,141.17,1e-08]
[1764252726415,21.7669015,141.18,141.17,1e-08]
[1764252726716,22.4669015,141.18,141.17,1e-08]
[1764252726921,25.30549213,141.18,141.17,1e-08]
[1764252727901,32.38864838,141.18,141.17,1e-08]
[1764252729994,31.68864838,141.18,141.17,1e-08]
[1764252731192,28.56864838,141.18,141.17,1e-08]
[1764252731396,31.68864838,141.18,141.17,1e-08]
[1764252731918,29.35061088,141.18,141.17,1e-08]
[1764252732119,13.04174688,141.18,141.17,1e-08]
[1764252732424,29.35061088,141.18,141.17,1e-08]
[1764252734402,32.37864838,141.18,141.17,1e-08]
[1764252734743,31.68864838,141.18,141.17,1e-08]
[1764252735027,32.37864838,141.18,141.17,1e-08]
[1764252736720,16.06978438,141.18,141.17,1e-08]
[1764252741029,32.37864838,141.18,141.17,1e-08]
[1764252741209,16.06978438,141.18,141.17,1e-08]
[1764252742114,32.37864838,141.18,141.17,1e-08]
[1764252742418,16.06978438,141.18,141.17,1e-08]
[1764252744621,29.35061088,141.18,141.17,1e-08]
[1764252745127,30.04061088,141.18,141.17,1e-08]
[1764252745326,26.92061088,141.18,141.17,1e-08]
[1764252745529,30.04061088,141.18,141.17,1e-08]
[1764252745829,29.35061088,141.18,141.17,1e-08]
[1764252746010,2.83859063,141.18,141.17,1e-08]
[1764252746216,3.12,141.18,141.17,3.65779892]
[1764252746410,19.428864,141.18,141.17,3.65779892]
[1764252746834,26.51202025,141.18,141.17,1e-08]
[1764252747212,30.36981916,141.18,141.17,1e-08]
[1764252748834,27.24981916,141.18,141.17,1e-08]
[1764252749129,30.36981916,141.18,141.17,1e-08]
[1764252749929,27.24981916,141.18,141.17,1e-08]
[1764252750140,30.36981916,141.18,141.17,1e-08]
[1764252750530,26.51202025,141.18,141.17,1e-08]
[1764252752339,23.39202025,141.18,141.17,1e-08]
[1764252752539,26.51202025,141.18,141.17,1e-08]
[1764252756821,3.12,141.18,141.17,1e-08]
[1764252771049,14.1664567,141.21,141.17,1e-08]
[1764252771247,3.12,141.2,141.19,3.65779891]
[1764252771754,3.12,141.21,141.2,15.89209789]
[1764252771955,7.08407018,141.28,141.21,8.80994492]
[1764252772288,7.08407018,141.28,141.21,3.65779891]
[1764252772289,3.65779891,141.26,141.21,3.65779891]
[1764252772642,0.7,141.25,141.21,3.65779891]
[1764252772945,3.12,141.24,141.21,3.65779891]
[1764252773449,0.7,141.26,141.22,3.65779891]
[1764252773660,3.12,141.25,141.22,3.65779891]
[1764252774229,3.12,141.25,141.22,10.73877959]
[1764252779474,3.12,141.25,141.23,3.65779891]
[1764252779786,3.12,141.25,141.22,10.73877959]
[1764252780956,3.82,141.25,141.22,3.65779891]
[1764252781159,0.7,141.24,141.21,10.73925454]
[1764252781553,16.308864,141.24,141.18,7.08315521]
[1764252781737,0.7,141.23,141.19,3.65779891]
[1764252781941,3.12,141.22,141.18,7.08315521]
[1764252782137,3.12,141.22,141.18,10.74095412]
[1764252782337,3.82,141.22,141.18,10.74095412]
[1764252782652,3.82,141.22,141.19,3.65779891]
[1764252782959,3.12,141.22,141.19,3.65779891]
[1764252783149,3.82,141.22,141.19,10.74034768]
[1764252784461,10.90118178,141.22,141.19,10.74034768]
[1764252786659,3.82,141.22,141.19,10.74034768]
[1764252786866,3.12,141.22,141.2,3.65779891]
[1764252787554,17.70962753,141.24,141.21,3.65779891]
[1764252787758,0.7,141.26,141.23,3.65779891]
[1764252787958,19.428864,141.25,141.23,3.65779891]
[1764252788368,3.12,141.25,141.23,3.65779891]
[1764252788740,25.48857442,141.27,141.23,3.65779891]
[1764252788960,3.12,141.26,141.23,3.65779891]
[1764252789559,3.82,141.26,141.23,3.65779891]
[1764252790861,3.12,141.26,141.24,3.65779891]
[1764252791569,10.19920516,141.26,141.24,3.65779891]
[1764252791748,10.88920516,141.26,141.24,3.65779891]
[1764252793669,3.81,141.26,141.24,3.65779891]
[1764252793970,3.12,141.26,141.24,3.65779891]
[1764252794748,3.12,141.26,141.23,7.08062902]
[1764252795072,3.12,141.25,141.24,3.65779891]
[1764252799777,3.79,141.25,141.23,3.65779891]
[1764252800976,24.05765346,141.27,141.24,3.65779891]
[1764252801152,3.79,141.26,141.22,7.08085614]
[1764252801358,10.86939704,141.26,141.22,3.65779891]
[1764252801674,0.67,141.25,141.22,3.65779891]
[1764252802467,7.74968554,141.25,141.22,3.65779891]
[1764252802874,0.67,141.24,141.22,3.65779891]
[1764252803082,3.12,141.23,141.22,3.65779891]
[1764252803876,3.12,141.23,141.22,10.73894888]
[1764252806658,3.12,141.23,141.22,2.33759501]
[1764252808366,3.79,141.23,141.22,2.33759501]
[1764252808565,3.12,141.23,141.22,2.33759501]
[1764252809561,7.74916418,141.26,141.22,9.41874498]
[1764252809775,3.12,141.25,141.23,2.33759501]
[1764252809970,3.79,141.25,141.23,2.33759501]
[1764252814685,0.67,141.24,141.22,2.33759501]
[1764252814860,0.67,141.24,141.2,2.33759501]
[1764252815289,2.33759501,141.23,141.19,2.33759501]
[1764252815459,3.12,141.22,141.19,2.33759501]
[1764252815660,3.79,141.22,141.19,2.33759501]
[1764252815864,0.67,141.21,141.19,2.33759501]
[1764252816890,0.67,141.21,141.19,9.42021738]
[1764252818091,0.67,141.21,141.19,2.33759501]
[1764252820984,7.75167019,141.21,141.18,2.33759501]
[1764252821184,0.67,141.21,141.18,2.33759501]
[1764252821383,0.67,141.2,141.18,2.33759501]
[1764252822088,0.67,141.2,141.17,1e-08]
[1764252822493,3.12,141.19,141.17,1e-08]
[1764252822696,3.79,141.19,141.17,1e-08]
[1764252824574,3.12,141.19,141.17,2.33759502]
[1764252826978,3.12,141.19,141.17,9.42103696]
[1764252827383,3.79,141.19,141.17,9.42103696]
[1764252827585,0.67,141.19,141.17,9.42103696]
[1764252827785,10.20222706,141.2,141.17,2.33759502]
[1764252827999,0.67,141.18,141.17,1e-08]
[1764252829800,7.75315625,141.18,141.17,1e-08]
[1764252832394,0.67,141.18,141.17,1e-08]
[1764252832600,7.75315625,141.18,141.17,1e-08]
[1764252835597,7.52649525,141.18,141.17,1e-08]
[1764252837023,0.443339,141.18,141.17,1e-08]
[1764252837308,7.52649525,141.18,141.17,1e-08]
[1764252839606,3.12,141.19,141.17,2.57759502]
[1764252839783,3.12,141.19,141.18,2.33759501]
[1764252840998,3.12,141.19,141.17,2.33759502]
[1764252841198,3.12,141.19,141.17,2.13759502]
[1764252842700,3.79,141.19,141.17,2.13759502]
[1764252842908,3.79,141.19,141.16,9.42168752]
[1764252843305,3.79,141.19,141.16,7.08409251]
[1764252843486,0.67,141.18,141.15,9.42214363]
[1764252843685,0.67,141.18,141.15,2.33759501]
[1764252843906,0.67,141.18,141.14,9.62271421]
[1764252844085,7.75345841,141.18,141.14,9.62271421]
[1764252844485,0.67,141.17,141.14,9.62271421]
[1764252845912,3.12,141.16,141.14,9.62271421]
[1764252846286,3.79,141.16,141.14,9.62271421]
[1764252846685,3.12,141.16,141.14,9.62271421]
[1764252847102,3.12,141.16,141.15,2.33759501]
[1764252851612,3.12,141.16,141.14,9.62271421]
[1764252852212,3.12,141.16,141.15,2.33759501]
[1764252853390,3.12,141.16,141.15,9.42225671]
[1764252854516,3.12,141.16,141.15,9.66225671]
[1764252855415,3.12,141.16,141.15,2.33759501]
[1764252855623,3.79,141.17,141.15,2.33759501]
[1764252855994,3.79,141.17,141.14,7.28498798]
[1764252856527,3.79,141.17,141.15,2.33759501]
[1764252858216,3.79,141.17,141.14,7.52498798]
[1764252858417,3.79,141.17,141.15,2.33759501]
[1764252859313,3.12,141.17,141.16,2.33759501]
[1764252860516,3.79,141.18,141.16,9.42171544]
[1764252862000,23.39137074,141.2,141.17,2.33759501]
[1764252862228,3.12,141.19,141.18,2.33759501]
[1764252862404,3.12,141.19,141.18,9.42075126]
[1764252864135,0.67,141.24,141.19,8.80994492]
[1764252864303,0.67,141.24,141.23,2.33759501]
[1764252864504,16.978864,141.24,141.23,2.33759501]
[1764252864706,16.978864,141.24,141.22,2.33759501]
[1764252865915,16.978864,141.24,141.21,2.33759501]
[1764252866123,0.67,141.23,141.21,9.41919647]
[1764252866517,0.67,141.23,141.21,3.65343289]
[1764252869404,0.67,141.23,141.21,10.73497494]
[1764252871528,3.79,141.23,141.21,10.73497494]
[1764252875028,3.79,141.23,141.22,3.65343289]
[1764252876429,0.67,141.25,141.22,3.89343289]
[1764252876608,16.50316985,141.27,141.22,10.97455349]
[1764252876609,3.12,141.24,141.22,10.97455349]
[1764252876929,3.12,141.24,141.23,3.65343289]
[1764252877732,3.12,141.25,141.23,3.65343289]
[1764252877934,3.12,141.25,141.24,3.65343289]
[1764252879918,3.79,141.25,141.24,10.73358015]
[1764252880104,3.12,141.25,141.24,10.73358015]
[1764252881218,3.12,141.27,141.24,10.97358015]
[1764252881412,3.12,141.27,141.26,3.65343289]
[1764252881711,0.68,141.29,141.26,3.65343289]
[1764252882023,3.12,141.28,141.27,3.65343289]
[1764252882612,3.8,141.28,141.27,3.65343289]
[1764252884239,3.8,141.28,141.27,10.73207662]
[1764252887237,3.12,141.28,141.27,10.73207662]
[1764252887433,3.8,141.28,141.27,10.73207662]
[1764252889242,3.8,141.28,141.25,3.65343289]
[1764252889425,0.68,141.27,141.26,7.07914483]
[1764252889623,0.68,141.27,141.21,21.26528442]
[1764252889839,0.68,141.27,141.23,3.65343289]
[1764252890021,7.75872654,141.27,141.23,3.65343289]
[1764252890226,11.41215943,141.27,141.22,3.65343289]
[1764252890446,22.03571901,141.26,141.21,10.73508433]
[1764252890745,3.12,141.25,141.21,10.73508433]
[1764252890948,3.8,141.25,141.21,10.73508433]
[1764252891132,0.68,141.24,141.21,10.73508433]
[1764252891834,0.68,141.24,141.22,3.65343289]
[1764252892017,3.12,141.25,141.23,3.65343289]
[1764252892217,3.12,141.25,141.24,3.65343289]
[1764252892839,3.8,141.25,141.24,3.65343289]
[1764252893425,3.8,141.25,141.23,3.65343289]
[1764252893628,0.68,141.24,141.23,10.73408147]
[1764252894229,3.8,141.25,141.23,10.73408147]
[1764252895444,0.68,141.24,141.23,7.08064858]
[1764252899142,0.68,141.24,141.23,10.73408147]
[1764252899826,0.68,141.24,141.23,7.08064858]
[1764252900128,0.68,141.24,141.23,10.73408147]
[1764252901246,0.68,141.24,141.23,7.08064858]
[1764252901447,0.68,141.24,141.17,9.04994492]
[1764252901645,7.76016922,141.24,141.17,9.04994492]
[1764252901947,16.308864,141.21,141.16,7.35245967]
[1764252902246,16.308864,141.21,141.16,3.69902678]
[1764252902247,6.77343289,141.2,141.16,3.69902678]
[1764252902546,3.65343289,141.19,141.14,3.85343289]
[1764252902846,4.33343289,141.19,141.14,12.66337781]
[1764252903049,3.65343289,141.17,141.14,0.2]
[1764252903360,3.12,141.16,141.14,0.2]
[1764252903855,0.68,141.15,141.14,0.2]
[1764252904631,3.8,141.15,141.14,0.2]
[1764252905028,7.45343289,141.15,141.12,0.2]
[1764252905234,0.68,141.14,141.12,0.2]
[1764252906646,3.12,141.15,141.12,11.37952643]
[1764252906851,0.68,141.14,141.12,10.93952643]
[1764252907245,0.68,141.14,141.12,0.2]
[1764252907446,0.68,141.14,141.12,3.85343289]
[1764252907649,0.68,141.14,141.12,0.2]
[1764252907841,0.68,141.14,141.12,3.85343289]
[1764252908043,0.68,141.14,141.12,0.2]
[1764252908244,0.68,141.14,141.12,3.85343289]
[1764252908557,0.68,141.14,141.12,10.93950608]
[1764252909065,0.68,141.14,141.12,7.28607319]
[1764252909246,0.68,141.14,141.12,0.2]
[1764252909561,0.68,141.14,141.12,3.85343289]
[1764252909756,0.68,141.14,141.12,7.2860719]
[1764252909933,0.68,141.14,141.12,10.93950479]
[1764252910129,3.65343289,141.13,141.12,0.2]
[1764252910352,16.308864,141.12,141.11,0.2]
[1764252910554,20.64229689,141.12,141.11,0.2]
[1764252911035,23.76229689,141.12,141.11,0.2]
[1764252911438,30.84846469,141.12,141.11,0.2]
[1764252911944,20.108864,141.12,141.11,0.2]
[1764252912952,0.68,141.12,141.11,0.2]
[1764252913146,3.12,141.12,141.11,0.2]
[1764252913849,3.65343289,141.13,141.11,0.2]
[1764252914031,3.83,141.14,141.12,3.65343289]
[1764252914551,3.83,141.14,141.11,7.28662015]
[1764252914552,12.80794492,141.14,141.11,3.85343289]
[1764252914765,8.97794492,141.14,141.13,3.65343289]
[1764252915055,3.12,141.15,141.13,3.65343289]
[1764252915254,3.83,141.15,141.12,0.64]
[1764252915454,3.83,141.15,141.13,3.65343289]
[1764252917242,3.12,141.15,141.14,3.65343289]
[1764252918049,3.12,141.16,141.14,7.08505767]
[1764252918344,3.12,141.16,141.15,3.65343289]
[1764252918551,3.83,141.16,141.15,3.65343289]
[1764252918756,3.83,141.16,141.14,3.65343289]
[1764252919761,3.83,141.16,141.15,3.65343289]
[1764252922283,3.12,141.16,141.15,3.65343289]
[1764252922563,3.12,141.16,141.15,10.73809459]
[1764252922770,16.308864,141.21,141.16,8.80994492]
[1764252923070,3.12,141.2,141.18,3.65343289]
[1764252923278,0.71,141.19,141.18,3.65343289]
[1764252925466,0.71,141.19,141.17,3.65343289]
[1764252925840,0.71,141.19,141.18,3.65343289]
[1764252926569,3.83,141.19,141.17,3.65343289]
[1764252927961,3.12,141.19,141.17,10.73693496]
[1764252928161,3.12,141.19,141.18,3.65343289]
[1764252928549,3.12,141.2,141.18,10.06187879]
[1764252928752,3.12,141.2,141.19,2.33900573]
[1764252931856,3.12,141.2,141.19,9.4215984]
[1764252932257,3.12,141.2,141.19,18.87154332]
[1764252932490,3.83,141.23,141.2,8.80994492]
[1764252932657,3.83,141.23,141.2,15.89161783]
[1764252933468,0.71,141.22,141.2,15.89161783]
[1764252934669,3.83,141.23,141.2,15.89161783]
[1764252934852,3.83,141.23,141.21,2.33900573]
[1764252935871,3.12,141.23,141.22,2.33900573]
[1764252936067,3.83,141.24,141.2,34.23700026]
[1764252936270,3.83,141.24,141.22,2.33900573]
[1764252937962,3.83,141.24,141.23,2.33900573]
[1764252939919,3.12,141.24,141.23,9.41965431]
[1764252940175,3.12,141.25,141.23,10.05965431]
[1764252940356,3.12,141.25,141.24,2.33900573]
[1764252940676,0.68,141.24,141.23,2.33900573]
[1764252940971,0.68,141.24,141.21,7.08145424]
[1764252941181,0.68,141.24,141.22,2.33900573]
[1764252942881,0.68,141.24,141.23,2.33900573]
[1764252943093,3.8,141.24,141.23,2.33900573]
[1764252949006,3.8,141.24,141.23,9.41965431]
[1764252949297,3.12,141.24,141.23,9.41965431]
[1764252951062,3.8,141.24,141.23,9.41965431]
[1764252951702,0.68,141.24,141.23,9.41965431]
[1764252951987,3.8,141.24,141.23,9.41965431]
[1764252952767,3.12,141.24,141.23,9.41965431]
[1764252953087,3.12,141.24,141.23,10.05965431]
[1764252953287,3.12,141.24,141.23,9.41965431]
[1764252954098,0.68,141.25,141.23,9.41965431]
[1764252954386,3.8,141.25,141.24,2.33900573]
[1764252956091,0.68,141.25,141.24,2.33900573]
[1764252956295,3.8,141.25,141.24,2.33900573]
[1764252960276,10.8796935,141.25,141.22,8.80994492]
[1764252960475,0.68,141.24,141.21,11.14895065]
[1764252961784,0.68,141.24,141.21,18.23016346]
[1764252962184,0.68,141.24,141.21,11.14895065]
[1764252963277,0.68,141.24,141.21,8.80994492]
[1764252963583,0.68,141.24,141.21,18.23052185]
[1764252965071,3.12,141.25,141.22,2.33900573]
[1764252965295,3.12,141.24,141.22,0.64]
[1764252965793,3.12,141.24,141.21,15.89151612]
[1764252965975,3.8,141.24,141.21,16.53151612]
[1764252966373,0.68,141.23,141.2,2.33900573]
[1764252967201,16.988864,141.26,141.22,2.33900573]
[1764252967377,3.8,141.26,141.24,2.33900573]
[1764252967773,0.68,141.25,141.21,0.64]
[1764252968905,0.68,141.25,141.22,15.89109489]
[1764252969406,0.68,141.25,141.22,16.53109489]
[1764252971388,3.8,141.25,141.22,16.53109489]
[1764252974719,3.12,141.25,141.24,2.33900573]
[1764252975906,3.78,141.25,141.24,2.33900573]
[1764252976108,3.12,141.25,141.24,2.33900573]
[1764252976317,3.78,141.25,141.24,2.33900573]
[1764252976811,3.12,141.25,141.24,2.33900573]
[1764252976989,3.78,141.25,141.24,2.33900573]
[1764252977907,3.12,141.25,141.24,2.33900573]
[1764252978594,3.78,141.25,141.24,2.33900573]
[1764252979506,3.12,141.25,141.24,9.41915299]
[1764252979904,3.12,141.25,141.24,2.33900573]
[1764252981028,3.12,141.25,141.23,9.4194435]
[1764252981231,0.66,141.24,141.23,18.22938842]
[1764252981604,3.12,141.25,141.23,18.22938842]
[1764252981823,3.78,141.25,141.23,18.22938842]
[1764252982529,3.12,141.25,141.23,18.22938842]
[1764252982702,3.78,141.25,141.23,18.22938842]
[1764252983822,3.78,141.25,141.24,2.33900573]
[1764252986946,3.78,141.25,141.23,11.14895065]
[1764252987109,0.66,141.24,141.23,11.14895065]
[1764252987424,3.78,141.25,141.23,18.22959923]
[1764252989229,7.07864714,141.27,141.24,11.78895065]
[1764252989528,3.12,141.26,141.25,2.33900573]
[1764252989831,3.78,141.26,141.25,2.33900573]
[1764252990530,3.78,141.26,141.25,3.651529]
[1764252990914,3.12,141.26,141.25,3.651529]
[1764252991325,3.78,141.26,141.25,3.651529]
[1764252993312,3.12,141.26,141.25,3.651529]